[Event "HUN-chT Youth-Children 2018"]
[Site "Zalakaros"]
[Date "2018.07.28"]
[Round "5"]
[White "Kovacs, Kristof"]
[Black "Gulacsi, Donat Ferenc"]
[Result "0-1"]
[ECO "B15"]
[WhiteElo "1351"]
[BlackElo "1610"]
[Annotator "NA RC"]
[PlyCount "72"]
[EventDate "2018.07.26"]
[EventType "team-tourn"]
[EventCountry "HUN"]
[SourceTitle "playchess.com"]
[Source "ChessBase"]
[SourceQuality "1"]
[TimeControl "5400+30"]

1. e4 {[%emt 0:00:00]} c6 {[%emt 0:00:20]} 2. d4 {[%emt 0:00:00]} d5 {[%emt 0:00:06]} 3. Nc3 {[%emt 0:00:10]} dxe4 {[%emt 0:00:24]} 4. Nxe4 {[%emt 0:00:23]} Nf6 {[%emt 0:00:20]} 5. Nxf6+ {[%emt 0:00:43]} exf6 {[%emt 0:00:09]} 6. c3 {[%emt 0:01:06]} Bd6 {[%emt 0:00:40]} 7. Nf3 {[%emt 0:01:15]} O-O {[%emt 0:00:49]} 8. Be2 {[%emt 0:00:41]} Re8 {[%emt 0:00:47]} 9. O-O {[%emt 0:00:17]} Nd7 {[%emt 0:00:52]} 10. Re1 {[%emt 0:01:31]} Nf8 {[%emt 0:01:33]} 11. Be3 {[%emt 0:02:18]} Ng6 {[%emt 0:06:47]} 12. Qd2 {[%emt 0:03:38]} Bf5 {[%emt 0:03:16]} 13. h3 {[%emt 0:04:22]} Qd7 {[%emt 0:02:31]} 14. Bf1 {[%emt 0:02:11]} Be4 {[%emt 0:06:55]} 15. Be2 {[%emt 0:06:27]} Qf5 {[%emt 0:08:49]} 16. Rac1 {[%emt 0:04:20]} Nf4 {[%emt 0:03:25]} 17. Qd1 {[%emt 0:02:28]} Nxh3+ {[%emt 0:06:00]} 18. Kf1 {[%emt 0:03:14]} Nf4 {[%emt 0:03:06]} 19. Bc4 {[%emt 0:05:02]} Nxg2 {[%emt 0:04:40]} 20. Ng1 {[%emt 0:03:26]} Nxe1 {[%emt 0:02:43]} 21. Kxe1 {[%emt 0:00:48]} Bf4 {[%emt 0:10:13]} 22. Qd2 {[%emt 0:01:38]} Bxe3 {[%emt 0:05:54]} 23. fxe3 {[%emt 0:00:51]} Bd5 {[%emt 0:02:53]} 24. Bd3 {[%emt 0:00:38]} Qg5 {[%emt 0:01:28]} 25. Ke2 {[%emt 0:00:39]} Qg2+ {[%emt 0:01:49]} 26. Kd1 {[%emt 0:00:41]} Qxg1+ {[%emt 0:00:45]} 27. Kc2 {[%emt 0:00:28]} Qg2 {[%emt 0:01:25]} 28. Qxg2 {[%emt 0:00:41]} Bxg2 {[%emt 0:00:09]} 29. e4 {[%emt 0:00:15]} Bxe4 {[%emt 0:00:10]} 30. Bxe4 {[%emt 0:00:11]} Rxe4 {[%emt 0:00:06]} 31. Kd3 {[%emt 0:00:19]} Rae8 {[%emt 0:00:09]} 32. Kc4 {[%emt 0:00:21]} Re1 {[%emt 0:00:27]} 33. Rxe1 {[%emt 0:00:17]} Rxe1 {[%emt 0:00:06]} 34. b4 {[%emt 0:00:10]} h5 {[%emt 0:00:10]} 35. a4 {[%emt 0:00:08]} h4 {[%emt 0:00:07]} 36. b5 {[%emt 0:00:29]} cxb5+ {[%emt 0:00:08]} 0-1

[Event "HUN-chT Youth-Children 2018"]
[Site "Zalakaros"]
[Date "2018.07.28"]
[Round "5"]
[White "Kasnya, Peter"]
[Black "Kis, Izabella"]
[Result "1/2-1/2"]
[ECO "C45"]
[WhiteElo "1320"]
[BlackElo "1446"]
[Annotator "NA RC"]
[PlyCount "89"]
[EventDate "2018.07.26"]
[EventType "team-tourn"]
[EventCountry "HUN"]
[SourceTitle "playchess.com"]
[Source "ChessBase"]
[SourceQuality "1"]
[TimeControl "5400+30"]

1. e4 {[%emt 0:00:00]} e5 {[%emt 0:00:08]} 2. Nf3 {[%emt 0:00:00]} Nc6 {[%emt 0:00:08]} 3. d4 {[%emt 0:00:45]} exd4 {[%emt 0:00:15]} 4. Nxd4 {[%emt 0:01:20]} Bc5 {[%emt 0:01:12]} 5. Nb3 {[%emt 0:00:25]} Bb6 {[%emt 0:01:05]} 6. Qe2 {[%emt 0:00:53]} d6 {[%emt 0:00:56]} 7. Be3 {[%emt 0:00:34]} Nf6 {[%emt 0:01:40]} 8. Nc3 {[%emt 0:00:35]} h6 {[%emt 0:08:16]} 9. f3 {[%emt 0:02:59]} O-O {[%emt 0:02:51]} 10. O-O-O {[%emt 0:00:45]} Re8 {[%emt 0:03:44]} 11. g4 {[%emt 0:02:32]} Nh7 {[%emt 0:06:03]} 12. h4 {[%emt 0:03:49]} f6 {[%emt 0:03:19]} 13. Qf2 {[%emt 0:21:35]} Ne5 {[%emt 0:05:13]} 14. Be2 {[%emt 0:04:04]} Bxe3+ {[%emt 0:11:10]} 15. Qxe3 {[%emt 0:00:49]} a6 {[%emt 0:09:19]} 16. Rdg1 {[%emt 0:03:10]} c6 {[%emt 0:06:01]} 17. Qd2 {[%emt 0:04:37]} Qe7 {[%emt 0:02:59]} 18. f4 {[%emt 0:03:49]} Nf7 {[%emt 0:02:05]} 19. Bc4 {[%emt 0:01:51]} b5 {[%emt 0:02:04]} 20. Bxf7+ {[%emt 0:00:32]} Qxf7 {[%emt 0:04:07]} 21. g5 {[%emt 0:00:16]} fxg5 {[%emt 0:03:25]} 22. hxg5 {[%emt 0:00:49]} hxg5 {[%emt 0:00:59]} 23. fxg5 {[%emt 0:00:20]} Qg6 {[%emt 0:01:18]} 24. a3 {[%emt 0:08:01]} a5 25. Qd4 {[%emt 0:19:47]} Bd7 {[%emt 0:05:43]} 26. Kb1 {[%emt 0:02:20]} a4 {[%emt 0:01:27]} 27. Nd2 {[%emt 0:00:30]} c5 {[%emt 0:01:23]} 28. Qd3 {[%emt 0:11:37]} Rab8 {[%emt 0:01:58]} 29. Nd5 {[%emt 0:00:46]} Nf8 {[%emt 0:05:13]} 30. Rh2 {[%emt 0:02:55]} Be6 {[%emt 0:03:50]} 31. Rgh1 {[%emt 0:00:34]} Bxd5 {[%emt 0:00:23]} 32. Qxd5+ {[%emt 0:00:25]} Qe6 {[%emt 0:00:50]} 33. Rh8+ {[%emt 0:00:29]} Kf7 {[%emt 0:00:08]} 34. Rf1+ {[%emt 0:01:07]} Ke7 {[%emt 0:00:24]} 35. Qxe6+ {[%emt 0:01:14]} Nxe6 {[%emt 0:00:27]} 36. Rxe8+ {[%emt 0:00:30]} Rxe8 {[%emt 0:00:19]} 37. g6 {[%emt 0:00:07]} Rf8 {[%emt 0:00:14]} 38. Rg1 {[%emt 0:00:46]} Rf6 {[%emt 0:00:49]} 39. Nf1 {[%emt 0:00:27]} Nf4 {[%emt 0:00:18]} 40. Ne3 {[%emt 0:00:12]} Ke6 {[%emt 0:01:17]} 41. Nf5 {[%emt 0:00:27]} Rxg6 {[%emt 0:00:39]} 42. Rxg6+ {[%emt 0:00:45]} Nxg6 {[%emt 0:00:08]} 43. Nxg7+ {[%emt 0:00:07]} Ke5 {[%emt 0:00:12]} 44. Ne8 {[%emt 0:00:34]} d5 {[%emt 0:01:25]} 45. exd5 {[%emt 0:00:14]} 1/2-1/2

[Event "HUN-chT Youth-Children 2018"]
[Site "Zalakaros"]
[Date "2018.07.28"]
[Round "5"]
[White "Kobol, Kitti"]
[Black "Szabo, Akos"]
[Result "1-0"]
[ECO "C48"]
[WhiteElo "1224"]
[BlackElo "1322"]
[Annotator "NA RC"]
[PlyCount "55"]
[EventDate "2018.07.26"]
[EventType "team-tourn"]
[EventCountry "HUN"]
[SourceTitle "playchess.com"]
[Source "ChessBase"]
[SourceQuality "1"]
[TimeControl "5400+30"]

1. e4 {[%emt 0:00:00]} e5 {[%emt 0:00:07]} 2. Nf3 {[%emt 0:00:00]} Nc6 {[%emt 0:00:24]} 3. Nc3 {[%emt 0:00:00]} Nf6 {[%emt 0:01:06]} 4. Bb5 {[%emt 0:01:08]} a6 {[%emt 0:00:41]} 5. Bxc6 {[%emt 0:00:55]} dxc6 {[%emt 0:00:51]} 6. d3 {[%emt 0:03:31]} Bd6 {[%emt 0:00:36]} 7. h3 {[%emt 0:00:37]} O-O {[%emt 0:01:49]} 8. Bg5 {[%emt 0:00:16]} h6 {[%emt 0:01:10]} 9. Bh4 {[%emt 0:00:23]} Re8 {[%emt 0:00:30]} 10. O-O {[%emt 0:00:23]} Bc5 {[%emt 0:02:19]} 11. Qd2 {[%emt 0:07:10]} Ba7 {[%emt 0:13:26]} 12. Rad1 {[%emt 0:06:19]} c5 {[%emt 0:02:40]} 13. Nd5 {[%emt 0:04:32]} Kh7 {[%emt 0:00:56]} 14. Nxf6+ {[%emt 0:01:26]} gxf6 {[%emt 0:00:21]} 15. Rfe1 {[%emt 0:03:41]} Rg8 {[%emt 0:02:24]} 16. Kh1 {[%emt 0:03:10]} Qd6 {[%emt 0:03:34]} 17. c3 {[%emt 0:04:24]} Rd8 {[%emt 0:03:37]} 18. Qe3 {[%emt 0:02:30]} c4 {[%emt 0:01:34]} 19. d4 {[%emt 0:00:44]} exd4 {[%emt 0:21:37]} 20. cxd4 {[%emt 0:01:32]} Re8 {[%emt 0:06:02]} 21. Qc3 {[%emt 0:02:31]} Kg7 {[%emt 0:03:48]} 22. e5 {[%emt 0:10:12]} fxe5 {[%emt 0:04:02]} 23. dxe5 {[%emt 0:00:49]} Qe6 {[%emt 0:01:14]} 24. Bf6+ {[%emt 0:01:07]} Kh7 {[%emt 0:03:40]} 25. Qc2+ Kg8 {[%emt 0:01:15]} 26. Qd2 {[%emt 0:03:44]} b5 {[%emt 0:01:06]} 27. Qxh6 {[%emt 0:01:58]} Qxf6 {[%emt 0:02:21]} 28. exf6 {[%emt 0:00:57]} 1-0

[Event "HUN-chT Youth-Children 2018"]
[Site "Zalakaros"]
[Date "2018.07.28"]
[Round "5"]
[White "Andras, Ferenc"]
[Black "Farkas, Otto Jr"]
[Result "0-1"]
[ECO "B03"]
[WhiteElo "1202"]
[BlackElo "1880"]
[Annotator "NA RC"]
[PlyCount "64"]
[EventDate "2018.07.26"]
[EventType "team-tourn"]
[EventCountry "HUN"]
[SourceTitle "playchess.com"]
[Source "ChessBase"]
[SourceQuality "1"]
[TimeControl "5400+30"]

{[%evp 8,64,48,21,39,0,0,0,0,-36,-16,-75,0,-9,39,37,80,48,79,62,70,46,56,37,68,50,51,39,78,22,14,5,-12,0,0,-36,-32,-52,32767,32767,-49,-32,-32,-166,-118,-161,-46,-233,-243,-375,-243,-506,-769,-845,-670,-1552,-703,-6430,-29990]} 1. e4 {[%emt 0:00:00]} Nf6 {[%emt 0:00:01]} 2. e5 {[%emt 0:00:39]} Nd5 {[%emt 0:00:06]} 3. d4 {[%emt 0:13:44]} d6 {[%emt 0:01:16]} 4. exd6 {[%emt 0:12:13]} cxd6 {[%emt 0:00:09]} 5. Nf3 {[%emt 0:05:35]} g6 {[%emt 0:00:16] LiveBook: 23 Games} 6. Bd3 {[%emt 0:09:53] B03: Alekhine's Defence: Four Pawns Attack} (6. Be2 Bg7 7. O-O O-O 8. h3 Bf5 9. c4 Nf6 10. Nc3 d5 11. Qb3 Nc6 12. Qxb7 Na5 13. Qb4 Rb8 14. Qc5 Nxc4 15. Nxd5 Qxd5 16. Qxd5 Nxd5 17. Bxc4 {1-0 (52) Malakhov,V (2686)-Ibrahimov,R (2518) Riadh 2017}) 6... Bg7 {[%emt 0:00:34]} 7. O-O {[%emt 0:08:15]} O-O {[%emt 0:00:22]} 8. Bg5 $146 {[%emt 0:06:07]} ({Predecessor:} 8. c3 a6 9. Nbd2 Nc6 10. Ne4 Bd7 11. Qb3 Nc7 12. Bg5 h6 13. Bh4 g5 {0-1 (55) Coward,N (1930)-Fabri,H (1994) England 2016}) 8... Nc6 {[%emt 0:03:27]} 9. Nbd2 {[%emt 0:03:37]} (9. Bc4 $11 Be6 10. Bb3) 9... Nb6 {[%emt 0:00:33]} (9... Nxd4 $15 10. Nxd4 Bxd4) 10. Re1 {[%emt 0:07:40]} Re8 {[%emt 0:00:26]} (10... f6 $5 {[%cal Rf6g5]} 11. Bh4 Nb4 $11) 11. c3 {[%emt 0:00:38]} Bg4 {[%emt 0:01:41]} 12. h3 {[%emt 0:00:50]} Bxf3 {[%emt 0:00:06]} 13. Nxf3 {[%emt 0:00:22]} d5 {[%emt 0:00:09]} 14. Qd2 {[%emt 0:01:30]} Qd7 {[%emt 0:00:28]} 15. Bh6 {[%emt 0:02:11]} Rac8 {[%emt 0:01:07]} 16. Bxg7 {[%emt 0:01:37]} Kxg7 {[%emt 0:00:08]} 17. Re2 {[%emt 0:02:32]} e6 {[%emt 0:01:35]} 18. Ne5 {[%emt 0:01:10]} Nxe5 {[%emt 0:00:09]} 19. Rxe5 {[%emt 0:00:10]} Nc4 {[%emt 0:00:06]} 20. Bxc4 $1 {[%emt 0:00:33]} Rxc4 {[%emt 0:00:29]} 21. Qf4 {[%emt 0:01:02]} Qc7 {[%emt 0:01:24]} 22. Qf3 {[%emt 0:01:02]} b5 {[%emt 0:02:08]} 23. a3 {[%emt 0:00:59]} a5 {[%emt 0:01:42]} 24. Re3 {[%emt 0:01:00]} Rc8 {[%emt 0:00:41]} 25. Rc1 {[%emt 0:00:29]} ({White should try} 25. Qd1 $15) 25... b4 {[%emt 0:01:26]} 26. axb4 {[%emt 0:01:10]} axb4 {[%emt 0:00:18]} (26... Rxb4 $17 27. Re2 {[#]} Rxd4 $1 {[%mdl 512]}) 27. Kf1 $2 {[%emt 0:00:34] [#]} (27. Qd1 $15) 27... Rxd4 $1 {[%emt 0:01:04]} 28. Ke2 {[%emt 0:01:12]} (28. Rd1 {ist wohl besser.} Rf4 29. Qg3) 28... Rc4 {[%emt 0:00:34]} 29. Kd2 $2 {[%emt 0:02:01]} (29. Qg3 {war angesagt.}) 29... d4 {[%emt 0:03:35]} 30. Rd3 {[%emt 0:00:58]} e5 {[%emt 0:00:39]} 31. g4 {[%emt 0:02:41]} Qe7 $19 {[%emt 0:00:24]} (31... dxc3+ $142 32. bxc3 e4) 32. Qe4 {[%emt 0:01:25]} dxc3+ {[%emt 0:00:10]} 0-1

[Event "HUN-chT Youth-Children 2018"]
[Site "Zalakaros"]
[Date "2018.07.28"]
[Round "6"]
[White "Vanczak, Tamas"]
[Black "Kovacs, Judit"]
[Result "1/2-1/2"]
[ECO "B40"]
[WhiteElo "2339"]
[BlackElo "2143"]
[Annotator "NA"]
[PlyCount "64"]
[EventDate "2018.07.26"]
[EventType "team-tourn"]
[EventCountry "HUN"]
[SourceTitle "playchess.com"]
[Source "ChessBase"]
[SourceQuality "1"]
[TimeControl "5400+30"]

1. e4 {[%emt 0:00:00]} c5 {[%emt 0:00:07]} 2. Nf3 {[%emt 0:00:00]} e6 3. d4 {[%emt 0:00:14]} cxd4 {[%emt 0:00:13]} 4. Nxd4 {[%emt 0:00:07]} Qb6 {[%emt 0:01:18]} 5. Nb3 {[%emt 0:01:12]} Qc7 {[%emt 0:00:09]} 6. Nc3 {[%emt 0:00:59]} a6 {[%emt 0:00:16]} 7. Bd3 {[%emt 0:00:17]} Nf6 {[%emt 0:00:17]} 8. Qe2 {[%emt 0:00:38]} d6 {[%emt 0:02:06]} 9. a4 {[%emt 0:01:24]} b6 {[%emt 0:07:14]} 10. O-O {[%emt 0:01:31]} Nbd7 {[%emt 0:00:59]} 11. f4 {[%emt 0:01:18]} Bb7 {[%emt 0:00:21]} 12. Bd2 {[%emt 0:02:14]} Be7 {[%emt 0:00:40]} 13. Kh1 {[%emt 0:00:56]} O-O {[%emt 0:01:57]} 14. Nd4 {[%emt 0:07:04]} Rfe8 {[%emt 0:07:29]} 15. Rae1 {[%emt 0:02:33]} Nc5 {[%emt 0:06:44]} 16. Rf3 {[%emt 0:09:43]} g6 {[%emt 0:10:43]} 17. Rh3 {[%emt 0:06:29]} e5 {[%emt 0:02:51]} 18. fxe5 {[%emt 0:07:18]} dxe5 {[%emt 0:00:13]} 19. Nf3 {[%emt 0:00:39]} Bc8 {[%emt 0:05:06]} 20. Rh6 {[%emt 0:01:50]} Nxd3 {[%emt 0:09:18]} 21. cxd3 {[%emt 0:00:12]} Bf8 {[%emt 0:06:07]} 22. Rh4 {[%emt 0:00:28]} h5 {[%emt 0:00:07]} 23. Rf1 {[%emt 0:05:50]} Qd6 {[%emt 0:05:12]} 24. Ng5 {[%emt 0:11:06]} Ra7 {[%emt 0:01:45]} 25. a5 {[%emt 0:04:57]} bxa5 {[%emt 0:06:03]} 26. Qf2 {[%emt 0:05:59]} Qxd3 {[%emt 0:03:32]} 27. Rd1 {[%emt 0:11:08]} Rc7 {[%emt 0:11:13]} 28. Qxf6 {[%emt 0:00:20]} Bg4 {[%emt 0:00:04]} 29. Rxg4 {[%emt 0:04:11]} hxg4 {[%emt 0:00:11]} 30. Bf4 {[%emt 0:01:14]} Bg7 {[%emt 0:03:37]} 31. Rxd3 {[%emt 0:07:06]} Bxf6 {[%emt 0:00:14]} 32. Be3 {[%emt 0:00:29]} Rb7 {[%emt 0:01:08]} 1/2-1/2

[Event "HUN-chT Youth-Children 2018"]
[Site "Zalakaros"]
[Date "2018.07.28"]
[Round "6"]
[White "Papp, Levente"]
[Black "Hatala, Csaba Laszlo"]
[Result "1-0"]
[ECO "C20"]
[WhiteElo "2311"]
[BlackElo "1958"]
[Annotator "NA"]
[PlyCount "61"]
[EventDate "2018.07.26"]
[EventType "team-tourn"]
[EventCountry "HUN"]
[SourceTitle "playchess.com"]
[Source "ChessBase"]
[SourceQuality "1"]
[TimeControl "5400+30"]

1. e4 {[%emt 0:00:00]} e5 {[%emt 0:00:09]} 2. c4 {[%emt 0:00:00]} Nc6 {[%emt 0:00:27]} 3. g3 {[%emt 0:00:05]} d6 {[%emt 0:00:31]} 4. Bg2 {[%emt 0:00:05]} Nf6 {[%emt 0:00:58]} 5. Nc3 {[%emt 0:00:08]} Be7 {[%emt 0:00:28]} 6. Nge2 {[%emt 0:00:13]} Be6 {[%emt 0:06:43]} 7. Nd5 {[%emt 0:01:04]} O-O {[%emt 0:02:27]} 8. O-O {[%emt 0:00:40]} Nd7 {[%emt 0:01:45]} 9. d3 {[%emt 0:01:27]} a5 {[%emt 0:14:13]} 10. f4 {[%emt 0:01:45]} Bg4 {[%emt 0:01:02]} 11. h3 {[%emt 0:00:17]} Bxe2 {[%emt 0:00:10]} 12. Qxe2 {[%emt 0:00:02]} Nd4 {[%emt 0:00:31]} 13. Qd1 {[%emt 0:02:16]} c6 {[%emt 0:03:46]} 14. Nc3 {[%emt 0:00:02]} Rb8 {[%emt 0:13:16]} 15. Be3 {[%emt 0:04:33]} Ne6 {[%emt 0:03:53]} 16. a3 {[%emt 0:01:40]} Nc7 {[%emt 0:10:09]} 17. d4 {[%emt 0:03:28]} Bf6 {[%emt 0:06:47]} 18. fxe5 {[%emt 0:00:49]} dxe5 {[%emt 0:00:12]} 19. d5 {[%emt 0:00:06]} cxd5 {[%emt 0:01:54]} 20. exd5 {[%emt 0:01:35]} Na6 {[%emt 0:03:45]} 21. Ne4 {[%emt 0:01:11]} Qc7 {[%emt 0:04:45]} 22. Rc1 {[%emt 0:00:49]} b6 {[%emt 0:01:55]} 23. g4 {[%emt 0:03:51]} Bd8 {[%emt 0:02:07]} 24. Rf5 {[%emt 0:18:02]} Kh8 {[%emt 0:04:05]} 25. g5 {[%emt 0:02:04]} g6 {[%emt 0:03:12]} 26. Rf1 {[%emt 0:00:23]} Ndc5 {[%emt 0:01:34]} 27. Nxc5 {[%emt 0:04:18]} Nxc5 {[%emt 0:00:26]} 28. b4 {[%emt 0:00:13]} Nb7 {[%emt 0:01:03]} 29. c5 {[%emt 0:00:26]} b5 {[%emt 0:05:08]} 30. d6 {[%emt 0:00:20]} Qc8 {[%emt 0:00:12]} 31. c6 {[%emt 0:00:06]} 1-0

[Event "HUN-chT Youth-Children 2018"]
[Site "Zalakaros"]
[Date "2018.07.28"]
[Round "6"]
[White "Polyik, Peter"]
[Black "Marosi, Levente"]
[Result "1-0"]
[ECO "A46"]
[WhiteElo "2265"]
[BlackElo "2337"]
[Annotator "NA"]
[PlyCount "43"]
[EventDate "2018.07.26"]
[EventType "team-tourn"]
[EventCountry "HUN"]
[SourceTitle "playchess.com"]
[Source "ChessBase"]
[SourceQuality "1"]
[TimeControl "5400+30"]

1. d4 {[%emt 0:00:00]} Nf6 {[%emt 0:00:09]} 2. Nf3 {[%emt 0:00:00]} e6 {[%emt 0:00:09]} 3. Bf4 {[%emt 0:00:12]} d5 {[%emt 0:01:01]} 4. e3 {[%emt 0:00:38]} c5 {[%emt 0:00:19]} 5. c3 {[%emt 0:00:16]} Nc6 {[%emt 0:00:46]} 6. Nbd2 {[%emt 0:00:09]} Bd6 {[%emt 0:02:46]} 7. Bg3 {[%emt 0:00:22]} O-O {[%emt 0:00:24]} 8. Bd3 {[%emt 0:00:21]} Re8 {[%emt 0:04:11]} 9. Ne5 {[%emt 0:00:44]} Qc7 {[%emt 0:12:12]} 10. f4 {[%emt 0:03:10]} h6 {[%emt 0:02:13]} 11. Bh4 {[%emt 0:12:41]} Nd7 {[%emt 0:08:23]} 12. Qh5 {[%emt 0:09:31]} Ndxe5 {[%emt 0:01:25]} 13. fxe5 {[%emt 0:01:32]} Be7 {[%emt 0:00:55]} 14. O-O {[%emt 0:02:37]} Bxh4 {[%emt 0:11:42]} 15. Qxh4 {[%emt 0:00:22]} Qe7 {[%emt 0:00:17]} 16. Qh5 {[%emt 0:08:47]} Rf8 {[%emt 0:07:18]} 17. Rf3 {[%emt 0:03:49]} Bd7 {[%emt 0:08:36]} 18. Raf1 {[%emt 0:03:17]} Be8 {[%emt 0:04:50]} 19. Rf6 {[%emt 0:01:07]} cxd4 {[%emt 0:06:35]} 20. cxd4 {[%emt 0:03:09]} Nb4 {[%emt 0:02:16]} 21. Rxh6 {[%emt 0:00:41]} gxh6 {[%emt 0:00:33]} 22. Rf6 {[%emt 0:00:06]} 1-0

[Event "HUN-chT Youth-Children 2018"]
[Site "Zalakaros"]
[Date "2018.07.28"]
[Round "6"]
[White "Czupor, Attila"]
[Black "Hegedus, Dominik"]
[Result "1-0"]
[ECO "B56"]
[WhiteElo "2239"]
[BlackElo "2005"]
[Annotator "NA"]
[PlyCount "103"]
[EventDate "2018.07.26"]
[EventType "team-tourn"]
[EventCountry "HUN"]
[SourceTitle "playchess.com"]
[Source "ChessBase"]
[SourceQuality "1"]
[TimeControl "5400+30"]

1. e4 {[%emt 0:00:00]} c5 {[%emt 0:00:14]} 2. Nf3 {[%emt 0:00:00]} Nc6 {[%emt 0:00:13]} 3. d4 {[%emt 0:00:06]} cxd4 {[%emt 0:00:08]} 4. Nxd4 {[%emt 0:00:06]} Nf6 {[%emt 0:00:13]} 5. Nc3 {[%emt 0:08:29]} d6 {[%emt 0:00:10]} 6. f3 {[%emt 0:00:39]} e5 {[%emt 0:00:18]} 7. Nb3 {[%emt 0:00:11]} Be6 {[%emt 0:00:23]} 8. Be3 {[%emt 0:00:10]} a6 {[%emt 0:00:17]} 9. Qd2 {[%emt 0:02:01]} d5 {[%emt 0:03:11]} 10. exd5 {[%emt 0:00:42]} Nxd5 {[%emt 0:00:24]} 11. Nxd5 {[%emt 0:00:48]} Qxd5 {[%emt 0:00:14]} 12. Qxd5 {[%emt 0:01:04]} Bxd5 {[%emt 0:00:07]} 13. O-O-O {[%emt 0:02:09]} Bxb3 {[%emt 0:02:07]} 14. axb3 {[%emt 0:00:11]} Be7 {[%emt 0:00:55]} 15. Bc4 {[%emt 0:02:05]} Rc8 {[%emt 0:03:42]} 16. Bb6 {[%emt 0:04:36]} Bd8 {[%emt 0:23:54]} 17. Bxd8 {[%emt 0:02:29]} Rxd8 {[%emt 0:00:08]} 18. Rxd8+ {[%emt 0:00:11]} Nxd8 {[%emt 0:00:09]} 19. Re1 {[%emt 0:00:41]} f6 {[%emt 0:00:23]} 20. f4 {[%emt 0:02:57]} Kd7 {[%emt 0:02:09]} 21. fxe5 {[%emt 0:00:14]} fxe5 {[%emt 0:01:17]} 22. Rxe5 {[%emt 0:00:08]} Rf8 {[%emt 0:00:23]} 23. Re2 {[%emt 0:03:26]} Nc6 {[%emt 0:01:21]} 24. c3 {[%emt 0:01:06]} Rf6 {[%emt 0:02:27]} 25. b4 {[%emt 0:02:56]} h6 {[%emt 0:03:34]} 26. b5 {[%emt 0:02:52]} Na5 {[%emt 0:00:50]} 27. Bd3 {[%emt 0:01:14]} axb5 {[%emt 0:02:05]} 28. Bxb5+ {[%emt 0:00:06]} Nc6 {[%emt 0:00:07]} 29. b4 {[%emt 0:03:46]} Rf5 {[%emt 0:05:13]} 30. Bd3 {[%emt 0:06:02]} Rf6 {[%emt 0:01:16]} 31. Kb2 {[%emt 0:02:11]} Kd6 {[%emt 0:03:26]} 32. Be4 {[%emt 0:04:01]} Re6 {[%emt 0:03:48]} 33. Rd2+ {[%emt 0:01:31]} Kc7 {[%emt 0:00:17]} 34. Bxc6 {[%emt 0:03:35]} Kxc6 {[%emt 0:00:14]} 35. Kb3 {[%emt 0:01:17]} Re1 {[%emt 0:01:54]} 36. Rf2 {[%emt 0:03:37]} Rg1 {[%emt 0:00:56]} 37. g3 {[%emt 0:00:52]} Rh1 {[%emt 0:00:08]} 38. c4 {[%emt 0:03:50]} Re1 {[%emt 0:03:06]} 39. Rf7 {[%emt 0:03:34]} Re2 {[%emt 0:01:18]} 40. Rxg7 {[%emt 0:00:32]} Rxh2 {[%emt 0:00:08]} 41. Rg6+ {[%emt 0:00:07]} Kc7 {[%emt 0:00:24]} 42. Ka4 {[%emt 0:00:17]} Kb8 {[%emt 0:03:30]} 43. Kb5 {[%emt 0:02:43]} Ka7 {[%emt 0:00:18]} 44. c5 {[%emt 0:15:46]} h5 {[%emt 0:03:14]} 45. Rg7 {[%emt 0:05:36]} Rc2 {[%emt 0:00:23]} 46. Rh7 {[%emt 0:00:18]} Rc3 {[%emt 0:00:35]} 47. Rg7 {[%emt 0:01:05]} Rc2 {[%emt 0:01:54]} 48. Rc7 {[%emt 0:05:07]} Rg2 {[%emt 0:03:14]} 49. c6 {[%emt 0:00:09]} Rxg3 {[%emt 0:00:08]} 50. Rxb7+ {[%emt 0:00:10]} Ka8 {[%emt 0:00:05]} 51. Kb6 {[%emt 0:00:23]} Rg6 {[%emt 0:00:15]} 52. Rh7 {[%emt 0:00:10]} 1-0

[Event "HUN-chT Youth-Children 2018"]
[Site "Zalakaros"]
[Date "2018.07.28"]
[Round "6"]
[White "Bohus, Adam"]
[Black "Tubak, Daniel"]
[Result "1/2-1/2"]
[ECO "B07"]
[WhiteElo "2231"]
[BlackElo "2168"]
[Annotator "NA"]
[PlyCount "38"]
[EventDate "2018.07.26"]
[EventType "team-tourn"]
[EventCountry "HUN"]
[SourceTitle "playchess.com"]
[Source "ChessBase"]
[SourceQuality "1"]
[TimeControl "5400+30"]

1. e4 {[%emt 0:00:00]} d6 {[%emt 0:00:20]} 2. d4 {[%emt 0:00:00]} Nf6 {[%emt 0:00:06]} 3. Nc3 {[%emt 0:00:27]} g6 {[%emt 0:00:08]} 4. Be3 {[%emt 0:01:22]} Bg7 {[%emt 0:00:10]} 5. Qd2 {[%emt 0:00:38]} c6 {[%emt 0:00:18]} 6. Nf3 {[%emt 0:02:57]} b5 {[%emt 0:03:04]} 7. Bd3 {[%emt 0:02:14]} Nbd7 {[%emt 0:03:55]} 8. Bh6 {[%emt 0:16:54]} Bxh6 {[%emt 0:03:59]} 9. Qxh6 {[%emt 0:00:14]} e5 {[%emt 0:00:27]} 10. h3 {[%emt 0:22:32]} Qe7 {[%emt 0:02:30]} 11. O-O {[%emt 0:05:30]} Bb7 {[%emt 0:02:44]} 12. b4 {[%emt 0:14:07]} a6 {[%emt 0:09:15]} 13. Rfe1 {[%emt 0:08:50]} Qf8 {[%emt 0:01:32]} 14. Qg5 {[%emt 0:03:46]} Qe7 {[%emt 0:00:24]} 15. Qh6 {[%emt 0:01:02]} Qf8 {[%emt 0:00:07]} 16. Qe3 {[%emt 0:03:29]} Qe7 {[%emt 0:00:25]} 17. Qh6 {[%emt 0:02:19]} Qf8 {[%emt 0:00:07]} 18. Qe3 {[%emt 0:00:15]} Qe7 {[%emt 0:00:06]} 19. Qh6 {[%emt 0:00:41]} Qf8 {[%emt 0:00:07]} 1/2-1/2

[Event "HUN-chT Youth-Children 2018"]
[Site "Zalakaros"]
[Date "2018.07.28"]
[Round "6"]
[White "Buzas, Bertalan"]
[Black "Kokeny, Norbert Adrian"]
[Result "1/2-1/2"]
[ECO "E18"]
[WhiteElo "2230"]
[BlackElo "2249"]
[Annotator "NA"]
[PlyCount "31"]
[EventDate "2018.07.26"]
[EventType "team-tourn"]
[EventCountry "HUN"]
[SourceTitle "playchess.com"]
[Source "ChessBase"]
[SourceQuality "1"]
[TimeControl "5400+30"]

1. d4 {[%emt 0:00:00]} Nf6 {[%emt 0:00:40]} 2. g3 {[%emt 0:00:00]} e6 {[%emt 0:00:42]} 3. Nf3 {[%emt 0:00:00]} b6 {[%emt 0:00:20]} 4. Bg2 {[%emt 0:00:03]} Bb7 {[%emt 0:00:05]} 5. O-O {[%emt 0:00:16]} Be7 {[%emt 0:01:06]} 6. c4 {[%emt 0:00:08]} O-O {[%emt 0:00:37]} 7. Nc3 {[%emt 0:00:08]} Ne4 {[%emt 0:02:30]} 8. Bd2 {[%emt 0:00:02]} f5 {[%emt 0:14:23]} 9. d5 {[%emt 0:02:14]} Nxd2 {[%emt 0:00:41]} 10. Qxd2 {[%emt 0:00:26]} Bf6 {[%emt 0:00:55]} 11. Nd4 {[%emt 0:01:41]} g6 {[%emt 0:05:50]} 12. dxe6 {[%emt 0:02:45]} Bxg2 {[%emt 0:00:19]} 13. Kxg2 {[%emt 0:06:00]} dxe6 {[%emt 0:00:26]} 14. Rad1 {[%emt 0:01:06]} Bxd4 {[%emt 0:01:05]} 15. Qxd4 {[%emt 0:00:06]} Nc6 {[%emt 0:11:18]} 16. Qxd8 {[%emt 0:00:06]} 1/2-1/2